Cogmind - Beta 11.1 @@@ ROGUE MODE // 2022.04.22 @ 21:27:31 Player: QQQQ Result: Destroyed by Y-45 Defender with Beam Rifle Performance ------------- Evolutions (1) 500 Regions Visited (3) 600 Robots Destroyed (36) 180 Value Destroyed (976) 976 Prototype IDs (3) 60 Alien Tech Used (0) 0 Bonus (23) 23 TOTAL SCORE: 2339 Bonus ------- High Alert Combat Kills 23 Cogmind --------- Core Integrity 0/400 Matter 274/300 Energy 100/100 System Corruption 0% Temperature Cool (9) Movement Core (50) Location -9/Materials Parts ------- > --- POWER (1) -------- (None) > --- PROPULSION (3) --- (None) > --- UTILITY (3) ------ (None) > --- WEAPON (2) ------- (None) > --- INVENTORY (5) ---- Light Ion Engine Structural Scanner Targeting Computer Beam Rifle Spread Laser Peak State ------------ > --- POWER ------------ Light Nuclear Core > --- PROPULSION ------- Aluminum Leg Aluminum Leg > --- UTILITY ---------- Small Storage Unit Signal Interpreter ECM Suite > --- WEAPON ----------- Heavy Assault Rifle Heavy Assault Rifle > --- INVENTORY -------- Light Ion Engine Heat Sink Large Storage Unit Structural Scanner Targeting Computer Beam Rifle Advanced Beam Cannon [Rating: 13] Favorites ----------- Power Light Nuclear Core Engine Light Ion Engine Power Core Light Nuclear Core Propulsion Aluminum Leg Leg Aluminum Leg Wheel Wheel Utility Signal Interpreter Device ECM Suite Storage Small Storage Unit Processor Signal Interpreter Weapon Light Assault Rifle Energy Gun Particle Gun Energy Cannon Advanced Beam Cannon Ballistic Gun Light Assault Rifle Launcher Grenade Launcher Special Weapon Welding Torch Slashing Weapon Mining Claw Build | -11 -10 -10 -9 ------- Run | Scr Mat Min Mat Slots Evolved 2 | . . . 2 Power . | . . . . Propulsion 1 | . . . 1 Utility 1 | . . . 1 Weapon . | . . . . Parts Attached 37 | 5 14 6 12 Power 5 | 1 2 1 1 Engine 3 | 1 1 . 1 Core 2 | . 1 1 . Reactor . | . . . . Propulsion 13 | 2 8 2 1 Treads . | . . . . Leg 11 | . 8 2 1 Wheel 2 | 2 . . . Hover . | . . . . Flight . | . . . . Utility 7 | . 3 1 3 Device 3 | . . . 3 Storage 1 | . . 1 . Processor 3 | . 3 . . Hackware . | . . . . Protection . | . . . . Artifact . | . . . . Weapon 12 | 2 1 2 7 Energy Gun 3 | . 1 . 2 Energy Cannon 1 | . . . 1 Ballistic Gun 5 | 2 . . 3 Ballistic Cannon . | . . . . Launcher 1 | . . 1 . Special Weapon 1 | . . 1 . Impact Weapon . | . . . . Slashing Weapon 1 | . . . 1 Piercing Weapon . | . . . . Special Melee Weapon . | . . . . Unidentified Prototypes 1 | . . . 1 Parts Lost 14 | . 1 5 8 Power 3 | . 1 1 1 Propulsion 2 | . . . 2 Utility 3 | . . . 3 Weapon 6 | . . 4 2 Highest Loss Streak 5 | . 1 2 5 To Critical Strikes . | . . . . Average Slot Usage (%) 88 | . 98 95 57 Engine 4 | . 10 . . Core 7 | . 3 12 6 Leg 21 | . 18 28 15 Wheel 3 | . 9 . . Device 1 | . . . 6 Storage 5 | . . 10 10 Processor 19 | . 26 17 7 Energy Gun 3 | . 2 7 . Ballistic Gun 13 | . 25 2 8 Launcher 3 | . . 9 . Special Weapon 1 | . . 5 . Naked Turns 13 | . . . 13 Heaviest Build 18 | 6 9 16 18 Greatest Support 20 | 20 20 20 20 Greatest Overweight (x) 2 | . 2 . 1 Average Overweight (x) . | . . . . Largest Inventory Capacity 8 | 5 5 8 8 Average Capacity 6 | 5 5 7 7 Most Carried 8 | 3 5 5 8 Average Carried 4 | 2 4 4 6 Final Capacity 8 | 5 5 8 5 Final Carried 5 | 3 5 5 5 Class Distribution -------------------- 51% | Scavenger-Mutant 48% | Mutant Dominant Class ---------------- Mutant | -10/Materials Scavenger-Mutant | -10/Mines Scavenger-Mutant | -9/Materials Resources | -11 -10 -10 -9 ----------- Run | Scr Mat Min Mat Matter Collected 944 | 262 284 203 195 Remotely . | . . . . Salvage Created 1123 | 35 556 324 208 Parts 72 | . 32 23 17 Haulers Intercepted . | . . . . Recyclers Shooed 1 | . 1 . . Parts Field Recycled . | . . . . Retrieved Matter . | . . . . Parts Self-Destructed . | . . . . Prevented . | . . . . Kills | -11 -10 -10 -9 ------- Run | Scr Mat Min Mat Combat Hostiles Destroyed 29 | 1 10 9 9 Guns 25 | 1 10 5 9 AOE 4 | . . 4 . Classes Destroyed 7 | 1 2 2 2 Builder 2 | . . 2 . Recycler 2 | . 1 1 . Watcher 3 | . 3 . . Swarmer 8 | . . 2 6 Grunt 19 | 1 10 7 1 Duelist 1 | . . . 1 Sentry 1 | . . . 1 Best Kill Streak 4 | 1 4 4 3 Combat Bots Only 4 | 1 4 2 3 Max Kills in Single Turn 2 | 1 1 2 1 Gunslinging . | . . . . Exploded 2 | . . 2 . Melee . | . . . . Uniques/NPCs Destroyed . | . . . . Combat | -11 -10 -10 -9 -------- Run | Scr Mat Min Mat Damage Taken 1987 | 10 422 581 974 Core 619 | . 84 133 402 Absorbed by Shields . | . . . . Core Remaining (%) 56 | 100 . 13 . Volleys Fired 109 | 3 41 35 30 Largest 2 | 2 2 2 2 Hottest 130 | 40 40 85 130 Shots Fired 188 | 6 82 47 53 Gun 176 | 6 82 35 53 Cannon . | . . . . Launcher 12 | . . 12 . Special . | . . . . Kinetic 147 | 6 82 12 47 Thermal 29 | . . 23 6 Explosive 12 | . . 12 . Electromagnetic . | . . . . Robot Hit Streak 15 | 2 14 3 15 Robot Miss Streak 4 | 1 4 2 3 Penetration Max . | . . . . Secondary Targets 7 | . 4 1 2 Max Gunslinging Chain 1 | . 1 1 1 Shots Hit Robots 116 | 3 52 25 36 Core Hits 69 | 2 26 26 15 Critical Kills . | . . . . Critical Parts Destroyed . | . . . . Critical Strikes . | . . . . Melee Attacks 1 | . . . 1 Impact . | . . . . Slashing 1 | . . . 1 Piercing . | . . . . Sneak Attacks . | . . . . Combat Hostiles . | . . . . Follow-up Attacks . | . . . . Damage Inflicted 1924 | 31 547 765 581 Guns 1427 | 31 547 268 581 Cannons . | . . . . Explosions 497 | . . 497 . Melee . | . . . . Ramming . | . . . . Kinetic 1149 | 31 547 81 490 Thermal 278 | . . 187 91 Explosive 497 | . . 497 . Electromagnetic . | . . . . Impact . | . . . . Slashing . | . . . . Piercing . | . . . . Highest Corruption 1 | . 1 1 . Average Corruption 1 | . 1 1 . Corruption Purged . | . . . . Corruption Blocked . | . . . . Effects 9 | . 4 5 . Message Errors 1 | . 1 . . Matter Fused 1 | . . 1 . Heat Flow Errors 1 | . . 1 . Energy Discharges 2 | . . 2 . Data Loss (minor) 3 | . 2 1 . Data Loss (major) 1 | . 1 . . Overload Shots . | . . . . Overflow Damage 45 | . . 45 . Projectiles . | . . . . Explosions 45 | . . 45 . Melee . | . . . . Knockbacks . | . . . . Impact . | . . . . Kinetic . | . . . . Secondary . | . . . . Self-Inflicted Damage 59 | . . 59 . Shots 2 | . . 2 . Rammed . | . . . . Targets Rammed . | . . . . Kicked . | . . . . Crushed . | . . . . Highest Temperature 283 | 6 21 283 114 Average Temperature 85 | 6 8 121 54 Received Heat Transfer 819 | 6 246 324 243 Effects 3 | . . 3 . Interference 3 | . . 3 . Siege Activations . | . . . . Robots Corrupted . | . . . . Combat Hostiles . | . . . . Parts Fried . | . . . . Impact Corruptions . | . . . . Robots Melted . | . . . . Combat Hostiles . | . . . . Parts Melted . | . . . . Heat Transferred 559 | . . 444 115 Parts Sabotaged . | . . . . Parts Stolen . | . . . . Parts Stripped . | . . . . Power Chain Reactions . | . . . . Missiles Intercepted . | . . . . Alert | -11 -10 -10 -9 ------- Run | Scr Mat Min Mat Peak Influence 464 | 20 194 331 464 Initial 86 | . 13 58 86 Average 176 | 2 106 190 326 Maximum Alert Level 2 | . . 1 2 Low Security (%) 73 | 100 100 66 26 Level 1 15 | . . 33 20 Level 2 11 | . . . 53 Level 3 . | . . . . Level 4 . | . . . . Level 5 . | . . . . High Security . | . . . . Max Security . | . . . . Squads Dispatched 4 | . 4 . . Investigation 2 | . 2 . . Extermination . | . . . . Reinforcement 2 | . 2 . . Assault . | . . . . Garrison . | . . . . Intercept . | . . . . Searches Triggered . | . . . . Construction Impeded . | . . . . Haulers Reinforced . | . . . . Active Scanning Responses . | . . . . Cargo Convoy Interrupts . | . . . . Stealth | -11 -10 -10 -9 --------- Run | Scr Mat Min Mat Distress Signals 4 | . 2 . 2 Communications Jammed . | . . . . Distress Signals . | . . . . Times Spotted 46 | 1 15 12 18 Peak Tracking Total 7 | 1 5 3 7 Tactical Retreats 4 | . . 1 3 Traps | -11 -10 -10 -9 ------- Run | Scr Mat Min Mat Traps Triggered 3 | . 3 . . Indirectly . | . . . . Trap Hack Attempts . | . . . . Triggered . | . . . . Disarmed . | . . . . Reprogrammed . | . . . . Reused . | . . . . Traps Extracted . | . . . . Installed . | . . . . Triggered . | . . . . Machines | -11 -10 -10 -9 ---------- Run | Scr Mat Min Mat Machines Disabled 1 | . . 1 . Max in Single Turn 1 | . . 1 . Machines Sabotaged . | . . . . Garrisons Compromised . | . . . . Overloaded Fab Kills . | . . . . Hacking | -11 -10 -10 -9 --------- Run | Scr Mat Min Mat Machines Accessed 5 | . 4 . 1 Terminals 4 | . 3 . 1 Fabricators . | . . . . Repair Stations . | . . . . Recycling Units 1 | . 1 . . Scanalyzers . | . . . . Garrison Access . | . . . . Total Hacks 8 | . 7 . 1 Successful 5 | . 5 . . Failed 3 | . 2 . 1 Catastrophic . | . . . . Database Lockouts . | . . . . Manual . | . . . . Terminals 7 | . 6 . 1 Fabricators . | . . . . Repair Stations . | . . . . Recycling Units 1 | . 1 . . Scanalyzers . | . . . . Garrison Access . | . . . . Terminal Hacks 4 | . 4 . . Prototype ID Bank 1 | . 1 . . Hauler Manifests 1 | . 1 . . Registered Components 1 | . 1 . . Zone Layout 1 | . 1 . . Fabricator Hacks . | . . . . Repair Station Hacks . | . . . . Recycling Unit Hacks 1 | . 1 . . Report Inventory 1 | . 1 . . Scanalyzer . | . . . . Garrison Access Hacks . | . . . . Unauthorized Hacks . | . . . . Terminals . | . . . . Fabricators . | . . . . Repair Stations . | . . . . Recycling Units . | . . . . Scanalyzers . | . . . . Garrison Access . | . . . . Data Cores Recovered . | . . . . Used . | . . . . Hacking Detections 2 | . 1 . 1 Full Trace Events . | . . . . Feedback Events . | . . . . Feedback Blocked . | . . . . Robot Schematics Acquired . | . . . . Robots Built . | . . . . Authchips . | . . . . Time . | . . . . Total Robot Build Rating . | . . . . Part Schematics Acquired . | . . . . Parts Built . | . . . . Authchips . | . . . . Time . | . . . . Total Part Build Rating . | . . . . Parts Repaired . | . . . . Time . | . . . . Parts Recycled . | . . . . Recycled Matter . | . . . . Retrieved Matter . | . . . . Retrieved Components . | . . . . Parts Scanalyzed . | . . . . Part Schematics Acquired . | . . . . Parts Damaged . | . . . . Bothacking | -11 -10 -10 -9 ------------ Run | Scr Mat Min Mat Used RIF Installer . | . . . . Robots Hacked . | . . . . Non-combat . | . . . . Combat . | . . . . Robot Hacks Applied . | . . . . Relay Couplers Released . | . . . . Fabnet Peak Effective % . | . . . . Robots Rewired . | . . . . Allies Hacked . | . . . . Hacks Repelled . | . . . . Allies | -11 -10 -10 -9 -------- Run | Scr Mat Min Mat Total Allies . | . . . . Largest Group . | . . . . Highest-Rated Group . | . . . . Highest-Rated Ally . | . . . . Total Orders . | . . . . Ally Attacks . | . . . . Total Damage . | . . . . Kills . | . . . . Allies Corrupted . | . . . . Allies Melted . | . . . . Intel | -11 -10 -10 -9 ------- Run | Scr Mat Min Mat Robot Analysis Total . | . . . . Derelict Logs Recovered 1 | . . 1 . Drone Launches . | . . . . Drone Recoveries . | . . . . Exploration | -11 -10 -10 -9 ------------- Run | Scr Mat Min Mat Turns Passed 1651 | 79 656 566 350 Spaces Moved 1043 | 71 422 358 192 Core 67 | 16 1 . 50 Treads . | . . . . Legs 750 | . 250 358 142 Wheels 226 | 55 171 . . Hover . | . . . . Flight . | . . . . Fastest Speed 50 | 50 80 120 50 Average Speed 108 | 73 103 120 108 Slowest Speed 150 | 80 150 120 120 Overloaded Moves . | . . . . Propulsion Burnouts . | . . . . Robots Hopped . | . . . . Cave-ins Triggered . | . . . . Exploration Rate (%) 36 | 6 59 58 21 Regions Visited 3 Branch Regions 1 Pre-discovered Areas . | . . . . Known Exits Taken 2 | . 1 1 . Unknown Exits Taken 1 | 1 . . . Scrap Searched 1 | . . 1 . Spaces Dug . | . . . . Terrain Destroyed 64 | . . 64 . Melee . | . . . . Projectile . | . . . . AOE 64 | . . 64 . Terrain Rammed . | . . . . Walls Destroyed . | . . . . Machines Disabled . | . . . . Actions | -11 -10 -10 -9 --------- Run | Scr Mat Min Mat Total 1380 | 89 565 448 278 Wait 151 | 8 67 44 32 Move 1040 | 70 421 357 192 Hop . | . . . . Pick Up 23 | 3 10 4 6 Fast Attach 17 | 5 7 2 3 Attach 8 | . . 1 7 Detach 4 | . . . 4 Swap 12 | . 7 3 2 Drop 15 | . 12 2 1 Fire 109 | 3 41 35 30 Melee 1 | . . . 1 Ram . | . . . . Kick . | . . . . Crush . | . . . . Escape Stasis . | . . . . Rewire . | . . . . Trap . | . . . . Miscellaneous . | . . . . Route ------- -11/Scrapyard -10/Materials (discovered 2 exits: *Mat / *Min) -10/Mines -9/Materials (discovered 1 exit: Min) History --------- Turn | Location | Event 2 | -11/Scrapyard | Met Revision 17 54 | -11/Scrapyard | Discovered new exit (range 8) 80 | -11/Scrapyard | Entered Materials 251 | -10/Materials | Discovered new exit (range 16) 334 | -10/Materials | Build established: Mutant 349 | -10/Materials | Identified exit to Materials 643 | -10/Materials | Discovered new exit (range 13) 657 | -10/Materials | Identified exit to Mines 736 | -10/Materials | Entered Mines 752 | -10/Mines | Core integrity fell below 50% 1160 | -10/Mines | Build established: Scavenger-Mutant 1291 | -10/Mines | Core integrity fell below 20% 1295 | -10/Mines | Discovered exit to Materials (range 7) 1302 | -10/Mines | Entered Materials 1302 | -9/Materials | Evolved 2 slots: Propulsion x1, Utility x1 1303 | -9/Materials | Identified exit to Mines 1520 | -9/Materials | Core integrity fell below 50% 1570 | -9/Materials | Lost 5 parts (1p1n2u1w) 1620 | -9/Materials | Core integrity fell below 20% 1652 | -9/Materials | Destroyed by Y-45 Defender with Beam Rifle Last Messages --------------- Acquired 15 matter. Aluminum Leg severed. ECM Suite destroyed. Hvy. Assault Rifle severed. Lgt. Nuclear Core destroyed. L-31 Rogue destroyed. U-05 Engineer builds a Door. K-01 Serf collects debris. Aluminum Leg destroyed. K-01 Serf collects debris. S-10 Pest destroyed. Hvy. Assault Rifle destroyed. Signal Interpreter destroyed. G-34 Mercenary destroyed. Acquired Aluminum Leg. Acquired 59 matter. Acquired 8 matter. K-01 Serf collects debris. Aluminum Leg destroyed. Sml. Storage Unit destroyed. Map ----- +----------------------------------------------------+ | ???????????# """ ###/####### #### # ## | | ???????????######## % # #### # ## | | ?????????????????## # #### ########### | | ?????????????????## # ########### | | ?????????????????## / ##????????? | | ?????????????????## # ##????????? | | ?????????????????## # #########????????? | | ?????????????????## # # ############ | | ?????????????????## # # ??? ##[[ # | | ?????????????????############ # """ ##[ # | | ?????????????????############ # """ ## """ # | | ??????????????????????### ?## # ## """""# | | ????????????????????? # # """ ## """""# | | ???????????????????? !! """ # # """ ## """""# | | ???????????????????# !! """ # # """ ## """ # | | ???????????????????# !! """ # # ?# # | | ???????????????????# + ###+######+####### | | ???????????????????# "S # | | ???????????????????# """ ! # | | ???????????????????# "" # ![ | | ???????????????????# ?############### ! #### | | ???????????????????#######????????????????# #??? | | ??????????????????######??????#######?????# #??? | | ??????????????????# ####### ####### #??? | | ??????????????????# g #??? | | ??????????????????# @ Y #??? | | ??????????????????# #??? | | ??????????????????# ####### ###+#######??? | | ??????????????????## #??????####### #??? | | ???????????????????# ?????????????# #??? | | ???????????????????# ??????????????# """ #??? | | ???????????????????# ???????????????# """""#??? | | ???????????????????#????????????????# """""#??? | | ????????????????????????????????????# """""#??? | | ????????????????????????????????????# """ ???? | | ????????????????????????????????????# ! ??????? | | ????????????????????????????????????#######??????? | | ?????????????????????????????????????????????????? | | ?????????????????????????????????????????????????? | | ?????????????????????????????????????????????????? | | ?????????????????????????????????????????????????? | | ?????????????????????????????????????????????????? | | ?????????????????????????????????????????????????? | | ?????????????????????????????????????????????????? | | ?????????????????????????????????????????????????? | | ?????????????????????????????????????????????????? | | ?????????????????????????????????????????????????? | | ?????????????????????????????????????????????????? | | ?????????????????????????????????????????????????? | | ?????????????????????????????????????????????????? | +----------------------------------------------------+ Best States ------------- Heat Dissipation 38 Energy Generation 14 Energy Capacity 250 Matter Stores 300 Matter Capacity 300 Sight Range 16 Terrain Scan Density 10 ECM Strength 1 Evasion (%) 55 Targeting Accuracy 10 Item Schematics ----------------- None Robot Schematics ------------------ None Fabricated ------------ Nothing Alien Tech Used ----------------- None Achievements -------------- None Challenges ------------ None Game ------ Seed DamperShieldPenetrator Manual? 0 Play Time 00:32:38 Cumulative 5.2 hours Start 2022.04.22 @ 20:51:50 End 2022.04.22 @ 21:27:31 Sessions 1 Manual Loads 0 Difficulty Rogue Special Mode None Game No. 3 Rogue 3 Adventurer 0 Explorer 0 Win Type - Total 0 Types 0/0/0/0/0/0/0/0/0 Lore% 2 Gallery% 7 Achievement% 9 Wizard Run 0 Options --------- ASCII 0 Keyboard 0 Movement Mouse Keybinds 0 Fullscreen 2 Font 18/TerminusBold Map View 76x50 Tactical HUD 0 Map Filters NONE Filters NONE Steam 1 RUN: 0ac45c93-83b7-4292-91a4-0690d8828376